bitfinex/quotes_SOLUSD_20240918
["timestamp","ask_amount","ask_price","bid_price","bid_amount"]
[1726689091139,13.06790181,130.16,130.05,7.94008]
[1726689091140,19.2078,130.16,130.08,7.6875]
[1726689091295,7.6842,130.14,130.08,0.12549]
[1726689091496,7.6846,130.13,130.1,0.37647]
[1726689092090,7.6853,130.12,130.1,0.12549]
[1726689092395,7.6863,130.11,130.08,0.12549]
[1726689093126,20.0,130.14,130.06,0.12549]
[1726689093291,7.6873,130.09,130.06,0.12549]
[1726689093807,19.2122,130.13,130.06,7.6886]
[1726689094124,7.6846,130.13,130.08,7.687]
[1726689094302,7.684,130.15,130.11,0.12549]
[1726689094629,7.6841,130.14,130.1,7.93718]
[1726689094935,7.6838,130.15,130.11,0.25098]
[1726689095122,7.684,130.14,130.12,0.25098]
[1726689095332,25.5436,130.18,130.1,19.215]
[1726689095504,7.6838,130.15,130.11,8.06207]
[1726689095706,20.0,130.17,130.11,0.12549]
[1726689096033,7.6846,130.14,130.12,0.12549]
[1726689096214,7.6846,130.13,130.09,388.9594956]
[1726689096526,39.2062,130.17,130.1,0.37647]
[1726689096727,20.0,130.17,130.1,0.37647]
[1726689096926,7.6841,130.14,130.1,8.06267]
[1726689097318,6.339,130.18,130.12,0.37647]
[1726689097524,7.6822,130.17,130.14,0.37647]
[1726689097727,84.07216704,130.21,130.14,0.25098]
[1726689097937,7.6826,130.17,130.14,0.25098]
[1726689098109,7.6817,130.18,130.15,0.12549]
[1726689098705,7.6824,130.17,130.14,0.25098]
[1726689099622,7.6828,130.16,130.13,0.12549]
[1726689099826,19.2029,130.19,130.13,0.25098]
[1726689100201,19.2029,130.19,130.12,381.2725956]
[1726689100637,7.6829,130.16,130.13,0.25098]
[1726689101147,7.6823,130.17,130.13,7.93548]
[1726689101351,64.87166704,130.21,130.15,0.12549]
[1726689101908,64.87166704,130.21,130.13,0.25098]
[1726689101909,64.55807124,130.17,130.12,381.2725956]
[1726689102131,7.6846,130.13,130.12,381.2725956]
[1726689102341,83.76447124,130.17,130.09,7.6864]
[1726689102545,7.6848,130.13,130.08,19.2183]
[1726689102717,7.6841,130.14,130.1,7.686]
[1726689102915,7.6841,130.14,130.05,447.1067956]
[1726689102916,19.209,130.15,130.05,416.3289956]
[1726689103119,7.6852,130.12,130.08,7.6874]
[1726689103326,7.687,130.09,130.05,397.1067956]
[1726689103663,7.6876,130.08,130.04,400.8052426]
[1726689103827,7.6869,130.1,130.04,408.4950426]
[1726689104022,7.6872,130.09,130.04,400.8052426]
[1726689104227,7.6872,130.09,130.05,7.6893]
[1726689104425,7.6865,130.1,130.05,7.6893]
[1726689104851,7.6858,130.11,130.06,0.37647]
[1726689105348,64.65442475,130.14,130.06,0.37647]
[1726689105549,6.386,130.15,130.1,7.6859]
[1726689105762,7.6845,130.14,130.1,0.25098]
[1726689106056,7.6845,130.14,130.1,7.93728]
[1726689106565,64.65442475,130.18,130.07,7.6881]
[1726689106566,7.6852,130.12,130.07,7.6881]
[1726689106728,7.6852,130.12,130.08,0.25098]
[1726689106929,19.2096,130.15,130.08,0.12549]
[1726689107235,7.687,130.09,130.06,381.2725956]
[1726689107427,7.6852,130.12,130.07,7.688]
[1726689107741,20.0,130.15,130.08,7.6875]
[1726689108057,7.6846,130.13,130.08,7.6874]
[1726689108346,7.6864,130.1,130.05,381.2725956]
[1726689108668,19.2108,130.14,130.07,0.12549]
[1726689108840,7.6868,130.1,130.06,7.81409]
[1726689109036,20.0,130.15,130.08,0.12549]
[1726689109227,7.6858,130.11,130.07,19.2202]
[1726689109428,39.2092,130.15,130.07,19.2202]
[1726689109638,39.2092,130.15,130.06,0.12549]
[1726689109841,7.6865,130.1,130.06,0.12549]
[1726689110252,7.6876,130.08,130.05,381.2725956]
[1726689110429,7.6873,130.09,130.04,19.532847]
[1726689110631,7.6876,130.08,130.04,27.222547]
[1726689110853,7.6876,130.08,130.04,19.532847]
[1726689111162,7.688,130.08,130.04,19.532847]
[1726689111362,7.6871,130.09,130.04,27.222647]
[1726689111529,7.6871,130.09,130.05,7.6893]
[1726689111733,20.0,130.11,130.05,7.6893]
[1726689111954,7.6877,130.08,130.04,19.532847]
[1726689112154,64.65704476,130.1,130.04,0.308747]
[1726689112533,7.6879,130.08,130.04,0.308747]
[1726689112858,20.0,130.09,130.04,0.308747]
[1726689113064,39.2177,130.09,130.04,0.308747]
[1726689113269,7.6879,130.08,130.04,0.308747]
[1726689113434,7.6888,130.06,130.04,0.308747]
[1726689113638,7.6893,130.05,130.04,0.308747]
[1726689114335,27.6893,130.05,130.04,0.308747]
[1726689115640,27.6893,130.05,129.99,0.3111714]
[1726689115641,7.6923,130.0,129.99,0.3111714]
[1726689116336,20.0,130.03,129.99,0.3111714]
[1726689116756,7.6923,130.0,129.99,0.3111714]
[1726689117273,92.34934476,130.0,129.99,0.3111714]
[1726689117570,92.60032476,130.0,129.99,0.3111714]
[1726689117856,92.34934476,130.0,129.99,0.3111714]
[1726689118060,27.6923,130.0,129.99,0.3111714]
[1726689118558,7.6917,130.01,129.99,0.3111714]
[1726689118771,20.0,130.02,129.99,0.3111714]
[1726689118937,7.6923,130.0,129.99,0.3111714]
[1726689119661,27.6923,130.0,129.99,0.3111714]
[1726689119871,92.34934476,130.0,129.99,0.3111714]
[1726689120366,92.34934476,130.0,129.94,0.3111714]
[1726689120367,7.6952,129.95,129.94,0.3111714]
[1726689121360,92.35224476,129.95,129.94,0.3111714]
[1726689121737,27.6952,129.95,129.94,0.3111714]
[1726689121935,92.35224476,129.95,129.94,0.3111714]
[1726689122163,7.6982,129.9,129.89,0.3111714]
[1726689123353,27.7006,129.86,129.85,0.3111714]
[1726689123679,92.48313476,129.86,129.85,0.3111714]
[1726689124239,92.48313476,129.86,129.76,23.936]
[1726689124240,7.7036,129.81,129.77,0.3341438]
[1726689124461,16.573,129.87,129.82,0.1713402]
[1726689124462,20.0,129.85,129.82,0.1713402]
[1726689124663,7.7019,129.84,129.82,0.1713402]
[1726689125274,7.701,129.86,129.82,0.1713402]
[1726689125482,20.0,129.89,129.82,0.1713402]
[1726689125655,64.65704476,129.9,129.83,0.25098]
[1726689125857,7.6994,129.88,129.84,7.7015]
[1726689126149,7.6989,129.89,129.85,0.25098]
[1726689126355,77.51110928,129.92,129.83,19.2552]
[1726689126555,77.51110928,129.92,129.84,8.07817]
[1726689126850,19.2449,129.91,129.82,0.1713402]
[1726689127070,7.7017,129.85,129.82,0.1713402]
[1726689127277,7.7018,129.84,129.82,0.1713402]
[1726689127464,7.7023,129.83,129.82,0.1713402]
[1726689127658,7.7019,129.84,129.82,0.1713402]
[1726689127881,7.7012,129.85,129.82,0.1713402]
[1726689128185,7.7023,129.83,129.82,0.1713402]
[1726689128355,27.7023,129.83,129.82,0.1713402]
[1726689128757,7.7053,129.78,129.77,0.3341438]
[1726689129258,64.65704476,129.81,129.77,0.3341438]
[1726689129482,7.7047,129.79,129.77,0.3341438]
[1726689129776,7.7036,129.81,129.77,0.3341438]
[1726689129985,20.0,129.84,129.77,0.3341438]
[1726689130304,7.7037,129.81,129.77,0.3341438]
[1726689130486,64.65704476,129.82,129.77,0.3341438]
[1726689130779,20.0,129.81,129.77,0.3341438]
[1726689130981,7.7035,129.82,129.77,8.0399438]
[1726689131279,7.7034,129.82,129.77,8.0400438]
[1726689131462,64.65704476,129.84,129.78,7.95568]
[1726689132084,7.7049,129.79,129.77,0.3341438]
[1726689132270,7.7037,129.81,129.77,0.3341438]
[1726689132478,64.65704476,129.82,129.77,0.3341438]
[1726689132681,7.7047,129.79,129.77,0.3341438]
[1726689132885,7.7042,129.8,129.77,0.3341438]
[1726689133178,7.7053,129.78,129.77,0.3341438]
[1726689133891,20.0,129.81,129.77,0.3341438]
[1726689134091,20.0,129.79,129.77,0.3341438]
[1726689134398,3.17970981,129.83,129.77,0.3341438]
[1726689134692,20.0,129.81,129.77,0.3341438]
[1726689135286,7.7047,129.79,129.77,0.3341438]
[1726689135677,7.7053,129.78,129.77,0.3341438]
[1726689135985,20.0,129.81,129.77,0.3341438]
[1726689136173,7.7049,129.79,129.77,0.3341438]
[1726689136693,7.7053,129.78,129.77,0.3341438]
[1726689137404,27.7053,129.78,129.77,0.3341438]
[1726689137694,111.62564476,129.78,129.77,0.3341438]
[1726689137902,92.36234476,129.78,129.77,0.3341438]
[1726689138204,64.65704476,129.8,129.77,0.3341438]
[1726689138364,7.7053,129.78,129.77,0.3341438]
[1726689139012,72.36234476,129.78,129.77,0.3341438]
[1726689139494,7.7036,129.81,129.77,0.3341438]
[1726689139798,7.7042,129.8,129.77,0.3341438]
[1726689139970,7.7053,129.78,129.77,0.3341438]
[1726689140777,27.7053,129.78,129.77,0.3341438]
[1726689141608,7.7083,129.73,129.72,381.6067394]
[1726689141889,7.7078,129.74,129.72,0.3341438]
[1726689142098,20.0,129.76,129.72,0.3341438]
[1726689142695,7.7071,129.75,129.72,0.3341438]
[1726689142900,7.7072,129.75,129.72,0.3341438]
[1726689143079,20.0,129.77,129.72,0.3341438]
[1726689143080,7.7078,129.74,129.72,0.3341438]
[1726689143389,64.65704476,129.76,129.72,0.3341438]
[1726689143600,7.7072,129.75,129.72,0.3341438]
[1726689144066,64.65704476,129.82,129.74,0.12549]
[1726689144271,34.6196,129.84,129.76,7.706]
[1726689144601,7.7037,129.81,129.76,7.706]
[1726689144774,7.7031,129.82,129.77,7.7059]
[1726689144975,19.2554,129.84,129.76,0.12549]
[1726689145180,19.2554,129.84,129.75,22.0963]
[1726689145380,7.7048,129.79,129.75,22.0963]
[1726689145664,7.703,129.82,129.78,0.12549]
[1726689145885,51.32641773,129.87,129.79,7.82969]
[1726689145886,7.7025,129.83,129.79,7.82969]
[1726689146282,7.7025,129.83,129.79,0.12549]
[1726689146480,7.7031,129.82,129.79,0.12549]
[1726689146792,7.7037,129.81,129.77,7.7058]
[1726689146995,64.65704476,129.83,129.76,7.95738]
[1726689147196,7.7048,129.79,129.76,0.12549]
[1726689147402,7.7048,129.79,129.75,22.0963]
[1726689147982,7.7046,129.8,129.75,29.8032]
[1726689148280,20.0,129.8,129.77,0.25098]
[1726689148486,7.7031,129.82,129.77,0.25098]
[1726689148685,7.7019,129.84,129.79,0.25098]
[1726689148899,7.7012,129.85,129.8,7.82899]
[1726689149079,7.7012,129.85,129.81,7.7034]
[1726689149277,7.7018,129.84,129.8,7.82949]
[1726689149593,7.7024,129.83,129.79,0.25098]
[1726689149973,7.7046,129.8,129.78,381.2725956]
[1726689150171,7.7033,129.82,129.78,381.2725956]
[1726689150569,7.7033,129.82,129.78,388.9777956]
[1726689150893,20.0,129.86,129.8,7.7037]
[1726689151235,20.0,129.86,129.78,381.2725956]
[1726689151512,7.7019,129.84,129.79,7.7046]
[1726689151679,7.7024,129.83,129.79,7.7046]
[1726689151878,83.91084476,129.85,129.78,381.2725956]
[1726689152075,7.7039,129.81,129.78,381.2725956]
[1726689152592,7.7024,129.83,129.79,0.37647]
[1726689152901,39.2525,129.86,129.78,381.2725956]
[1726689153082,20.0,129.84,129.78,381.2725956]
[1726689153601,43.17,129.84,129.78,381.2725956]
[1726689153812,20.0,129.8,129.75,6.0664]
[1726689153991,20.0,129.8,129.72,0.3341438]
[1726689154188,7.7052,129.79,129.72,0.3341438]
[1726689154391,20.0,129.84,129.78,7.7047]
[1726689154582,42.32297106,129.87,129.79,1.54072162]
[1726689154784,7.7017,129.85,129.75,50.0]
[1726689155000,7.7019,129.84,129.79,22.6486]
[1726689155205,7.7019,129.84,129.8,7.95488]
[1726689155414,7.6998,129.88,129.83,7.7019]
[1726689155605,0.3341438,129.9,129.82,0.25098]
[1726689155810,0.3341438,129.9,129.81,19.2582]
[1726689155811,7.7017,129.85,129.81,19.2582]
[1726689156122,7.7028,129.83,129.8,0.37647]
[1726689156310,19.2508,129.87,129.8,0.37647]
[1726689156311,7.7018,129.84,129.8,0.37647]
[1726689156701,7.7012,129.85,129.8,8.08037]
[1726689157096,19.2508,129.87,129.8,0.12549]
[1726689157407,20.0,129.86,129.79,22.6486]
[1726689157802,20.0,129.87,129.8,19.63627]
[1726689158010,20.0,129.87,129.81,7.7031]
[1726689158227,7.7007,129.86,129.82,7.7028]
[1726689158518,55.65634786,129.86,129.79,22.6486]
[1726689158689,74.90834786,129.86,129.79,22.6486]
[1726689159125,7.7031,129.82,129.79,22.6486]
[1726689159327,7.7024,129.83,129.79,22.6486]
[1726689159517,7.7019,129.84,129.79,30.3532]
[1726689160027,7.7028,129.83,129.79,22.6486]
[1726689160327,20.0,129.87,129.8,0.37647]
[1726689160501,20.0,129.87,129.8,0.12549]
[1726689160696,7.7026,129.83,129.79,22.6486]
[1726689160897,7.703,129.82,129.79,22.6486]
[1726689161109,7.703,129.82,129.78,0.12549]
[1726689161319,7.703,129.82,129.78,7.83069]
[1726689161496,20.0,129.85,129.78,7.7052]
[1726689161697,7.7036,129.81,129.77,26.9698]
[1726689161916,7.7042,129.8,129.75,22.759]
[1726689162093,7.7042,129.8,129.75,30.4657]
[1726689162499,7.7042,129.8,129.75,22.759]
[1726689162701,39.2534,129.85,129.76,19.2657]
[1726689162927,39.2534,129.85,129.77,0.25098]
[1726689163228,7.7033,129.82,129.78,7.7052]
[1726689163437,20.0,129.85,129.79,7.7043]
[1726689163806,20.0,129.85,129.78,27.09309]
[1726689164128,55.65634786,129.84,129.76,0.25098]
[1726689164322,29.8023,129.87,129.78,0.25098]
[1726689164323,75.65634786,129.86,129.78,0.25098]
[1726689164620,20.0,129.86,129.8,0.25098]
[1726689164996,7.7029,129.83,129.79,19.2615]
[1726689165308,7.7041,129.8,129.76,19.2654]
[1726689165514,7.7037,129.81,129.76,19.2654]
[1726689165707,7.7044,129.8,129.76,26.9717]
[1726689165913,55.65634786,129.84,129.76,26.9717]
[1726689166416,7.7037,129.81,129.77,7.7059]
[1726689166619,7.7037,129.81,129.76,19.2654]
[1726689166620,55.65634786,129.84,129.76,19.2654]
[1726689166810,7.7034,129.82,129.78,19.2631]
[1726689167008,55.65634786,129.84,129.78,19.2631]
[1726689167216,19.2533,129.85,129.78,26.9678]
[1726689167415,7.7035,129.81,129.78,19.2631]
[1726689167897,7.7031,129.82,129.78,26.9683]
[1726689168629,20.0,129.84,129.76,0.37647]
[1726689168931,55.65634786,129.86,129.78,7.7051]
[1726689168932,7.703,129.82,129.78,7.7051]
[1726689169100,7.7021,129.84,129.76,0.37647]
[1726689169301,7.7021,129.84,129.8,8.08037]
[1726689169628,7.7029,129.82,129.79,19.2617]
[1726689170207,86.85004686,129.88,129.75,22.759]
[1726689170414,7.706,129.77,129.75,22.759]
[1726689170643,20.0,129.82,129.75,22.759]
[1726689170826,20.0,129.83,129.76,19.2658]
[1726689171222,7.7047,129.79,129.75,30.4657]
[1726689171415,7.7037,129.81,129.75,42.0262]
[1726689171610,7.7033,129.82,129.78,7.7051]
[1726689171838,20.0,129.85,129.77,19.2645]
[1726689172036,7.7029,129.83,129.78,7.7052]
[1726689172541,7.7029,129.83,129.77,19.2645]
[1726689172542,20.0,129.85,129.77,19.2645]
[1726689172732,7.7037,129.81,129.77,26.9703]
[1726689172939,7.7047,129.79,129.75,30.4657]
[1726689173115,20.0,129.83,129.75,22.759]
[1726689173311,19.2585,129.82,129.75,22.759]
[1726689173519,55.65634786,129.79,129.74,382.1]
[1726689173773,7.7059,129.78,129.74,382.1]
[1726689174117,7.7059,129.78,129.74,389.8076]
[1726689174624,55.65634786,129.79,129.75,7.707]
[1726689174625,7.7049,129.79,129.75,7.707]
[1726689174811,7.7054,129.78,129.74,382.1]
[1726689175238,7.7059,129.77,129.74,382.1]
[1726689175542,7.7059,129.77,129.73,19.39589]
[1726689175716,7.7061,129.77,129.73,7.83369]
[1726689175911,7.7061,129.77,129.73,0.12549]
[1726689176311,55.65634786,129.79,129.73,0.12549]
[1726689176544,27.7047,129.8,129.74,0.12549]
[1726689176843,55.65634786,129.84,129.76,0.12549]
[1726689177147,7.7035,129.82,129.77,7.83119]
[1726689177342,7.7026,129.83,129.78,19.51398]
[1726689177553,74.90884786,129.86,129.78,19.51398]
[1726689177721,55.65634786,129.88,129.81,0.12549]
[1726689177931,7.7007,129.86,129.81,0.37647]
[1726689178150,7.7013,129.85,129.81,8.07987]
[1726689178329,7.7007,129.86,129.81,8.07987]
[1726689179242,34.24478397,129.87,129.8,25.8136]
[1726689179438,34.24478397,129.87,129.8,6.5541]
[1726689179439,7.7024,129.83,129.8,6.5541]
[1726689179831,7.7032,129.82,129.78,23.3801]
[1726689180151,7.7024,129.83,129.79,7.7046]
[1726689180356,34.24478397,129.85,129.78,15.675]
[1726689180528,34.24478397,129.85,129.78,23.3803]
[1726689180934,7.7041,129.8,129.78,15.675]
[1726689181285,7.7039,129.81,129.77,13.9449]
[1726689181474,7.7051,129.79,129.77,6.2391]
[1726689181627,7.7035,129.82,129.77,13.945]
[1726689181826,7.7036,129.81,129.77,13.945]
[1726689182352,7.7044,129.8,129.75,19.2674]
[1726689182551,34.24478397,129.83,129.75,19.2674]
[1726689182731,41.56974219,129.87,129.78,7.95588]
[1726689182732,7.703,129.82,129.78,7.95588]
[1726689182935,7.7025,129.83,129.78,0.25098]
[1726689183138,34.24478397,129.85,129.79,7.7046]
[1726689183430,42.26866467,129.89,129.8,0.12549]
[1726689183648,7.7025,129.83,129.79,19.261]
[1726689183846,7.7025,129.83,129.78,7.95578]
[1726689183847,7.7034,129.82,129.78,7.95578]
[1726689184052,19.2522,129.86,129.78,7.95578]
[1726689184053,19.2522,129.86,129.79,7.7047]
[1726689184236,34.24478397,129.87,129.79,0.12549]
[1726689184649,34.24478397,129.83,129.77,382.1]
[1726689184835,7.7046,129.8,129.77,382.1]
[1726689185039,7.7051,129.79,129.75,7.707]
[1726689185247,7.7051,129.79,129.74,49.0634]
[1726689185449,7.7048,129.79,129.75,7.7071]
[1726689185674,27.7043,129.8,129.74,41.3559]
[1726689185861,20.0,129.8,129.74,41.3559]
[1726689186056,20.0,129.8,129.74,22.259619]
[1726689186057,7.7055,129.78,129.74,22.259619]
[1726689186552,7.7059,129.77,129.74,22.259619]
[1726689186865,7.7043,129.8,129.75,0.25098]
[1726689187085,7.703,129.82,129.77,19.2644]
[1726689187237,7.7036,129.81,129.78,0.12549]
[1726689187634,7.7037,129.81,129.77,7.95678]
[1726689187857,53.50108397,129.83,129.74,29.967219]
[1726689188071,53.50108397,129.83,129.74,22.259619]
[1726689188072,53.50508397,129.81,129.74,22.259619]
[1726689188238,7.7061,129.77,129.74,22.259619]
[1726689188440,53.50508397,129.81,129.74,22.259619]
[1726689188441,7.7067,129.76,129.74,22.259619]
[1726689188785,7.7067,129.76,129.74,0.171919]
[1726689188786,7.7066,129.76,129.74,0.171919]
[1726689189266,7.7071,129.75,129.74,0.171919]
[1726689189770,27.7071,129.75,129.74,0.171919]
[1726689190143,7.7071,129.75,129.74,0.171919]
[1726689191049,7.7065,129.76,129.74,0.171919]
[1726689191355,7.706,129.77,129.74,0.171919]
[1726689191552,107.81668397,129.83,129.74,7.879419]
[1726689191777,7.7054,129.78,129.74,7.879419]
[1726689192285,7.7057,129.78,129.74,6.535819]
[1726689192478,7.7059,129.77,129.74,6.535819]
[1726689192644,20.0,129.8,129.74,6.535819]
[1726689192843,34.24478397,129.79,129.74,0.171919]
[1726689193146,7.7071,129.75,129.74,0.171919]
[1726689193550,27.7071,129.75,129.74,0.171919]
[1726689193850,61.95188397,129.75,129.74,0.171919]
[1726689194752,27.7071,129.75,129.74,0.171919]
[1726689195974,7.7065,129.76,129.74,0.171919]
[1726689196346,7.7071,129.75,129.74,0.171919]
[1726689196761,27.7071,129.75,129.74,0.171919]
[1726689197362,7.7069,129.76,129.74,0.171919]
[1726689197769,34.24478397,129.81,129.74,0.171919]
[1726689197957,7.7057,129.78,129.74,7.879419]
[1726689198150,7.7049,129.79,129.75,7.7066]
[1726689198353,58.51849266,129.83,129.74,0.171919]
[1726689198354,19.2613,129.8,129.74,0.171919]
[1726689198555,7.7063,129.77,129.74,0.171919]
[1726689198756,7.7059,129.77,129.74,0.171919]
[1726689199951,7.7068,129.76,129.74,0.171919]
[1726689200148,20.0,129.8,129.74,27.148019]
[1726689200366,7.7057,129.78,129.75,0.25098]
[1726689200565,7.7069,129.76,129.74,0.171919]
[1726689201362,34.24478397,129.81,129.74,0.171919]
[1726689201566,7.7043,129.8,129.76,6.5209]
[1726689201753,7.7052,129.79,129.76,6.5209]
[1726689203365,20.0,129.82,129.77,0.37647]
[1726689203680,8.02086992,129.83,129.8,26.9637]
[1726689203859,15.72366992,129.83,129.78,7.7051]
[1726689204067,15.72366992,129.83,129.79,0.37647]
[1726689204260,15.72366992,129.83,129.8,0.12549]
[1726689204261,8.02086992,129.83,129.8,0.12549]
[1726689204591,8.02086992,129.83,129.79,0.12549]
[1726689204752,7.7039,129.81,129.78,0.25098]
[1726689204951,7.703,129.82,129.78,0.25098]
[1726689205582,8.02086992,129.83,129.8,7.7039]
[1726689205889,7.703,129.82,129.79,0.12549]
[1726689206055,8.02086992,129.83,129.79,0.12549]
[1726689206376,8.02086992,129.83,129.8,7.95498]
[1726689206582,8.02086992,129.83,129.8,0.12549]
[1726689208577,8.02086992,129.83,129.81,0.12549]
[1726689208880,8.02086992,129.83,129.81,0.25098]
[1726689209386,8.02086992,129.83,129.81,0.12549]
[1726689209674,8.02086992,129.83,129.82,0.12549]
[1726689209984,8.02086992,129.83,129.81,0.12549]
[1726689210150,8.02086992,129.83,129.77,401.3642]
[1726689210356,8.02086992,129.83,129.78,0.37647]
[1726689210852,8.02086992,129.83,129.8,8.08027]
[1726689211053,8.02086992,129.83,129.82,0.37647]
[1726689211482,15.72316992,129.83,129.82,0.37647]
[1726689211777,15.72346992,129.83,129.8,0.37647]
[1726689211986,8.02086992,129.83,129.8,0.12549]
[1726689212188,7.7041,129.8,129.79,382.1]
[1726689212557,7.7035,129.82,129.79,382.1]
[1726689212762,27.27736992,129.83,129.79,382.1]
[1726689212763,15.72336992,129.83,129.79,382.1]
[1726689212984,7.7041,129.8,129.79,382.1]
[1726689213168,7.7037,129.81,129.79,382.1]
[1726689213382,7.7037,129.81,129.8,0.25098]
[1726689213577,8.02086992,129.83,129.8,0.25098]
[1726689213578,7.7031,129.82,129.8,0.25098]
[1726689213796,7.7035,129.81,129.8,0.25098]
[1726689213957,7.7041,129.8,129.79,382.1]
[1726689214159,7.7036,129.81,129.79,382.1]
[1726689214461,8.02086992,129.83,129.8,0.12549]
[1726689214671,7.7033,129.82,129.8,0.12549]
[1726689214863,15.72326992,129.83,129.8,0.12549]
[1726689215073,7.7024,129.83,129.8,0.12549]
[1726689215273,7.7024,129.83,129.8,0.25098]
[1726689215476,7.702,129.84,129.81,0.12549]
[1726689215670,7.7015,129.85,129.82,0.25098]
[1726689215881,7.7018,129.84,129.82,0.25098]
[1726689216092,7.7023,129.83,129.81,0.12549]
[1726689216405,19.2532,129.85,129.8,0.37647]
[1726689216990,0.1409999,129.86,129.8,0.37647]
[1726689217178,0.1409999,129.86,129.81,19.2588]
[1726689217375,0.1409999,129.86,129.8,0.37647]
[1726689217376,19.3927999,129.86,129.8,0.37647]
[1726689217597,0.1409999,129.86,129.8,0.37647]
[1726689217892,0.1409999,129.86,129.83,0.37647]
[1726689217893,7.8416999,129.86,129.83,0.37647]
[1726689218096,7.7017,129.84,129.83,16.10908]
[1726689218303,0.1409999,129.86,129.83,16.23457]
[1726689218304,7.7011,129.85,129.83,16.23457]
[1726689218469,7.7017,129.84,129.83,16.23457]
[1726689218670,7.7017,129.84,129.83,0.25098]
[1726689219067,7.7023,129.83,129.81,0.12549]
[1726689219270,0.1409999,129.86,129.83,7.7022]
[1726689219582,0.1409999,129.86,129.81,19.38359]
[1726689219898,7.7026,129.83,129.81,0.25098]
[1726689220074,0.1409999,129.86,129.8,15.206]
[1726689220278,20.0,129.85,129.77,15.8676]
[1726689220475,59.6864,129.85,129.74,0.171919]
[1726689220676,7.7071,129.75,129.74,0.171919]
[1726689221767,27.7071,129.75,129.74,0.171919]
[1726689222409,7.7101,129.7,129.69,0.3129189]
[1726689222634,7.7096,129.71,129.69,0.3129189]
[1726689222782,7.7089,129.72,129.69,0.3129189]
[1726689222986,7.7088,129.73,129.69,0.3129189]
[1726689223217,20.0,129.77,129.69,0.3129189]
[1726689223384,7.7089,129.72,129.69,0.3129189]
[1726689223583,7.7081,129.74,129.69,0.3129189]
[1726689223833,7.7081,129.74,129.7,0.25098]
[1726689224186,20.0,129.79,129.7,0.25098]
[1726689224386,7.7072,129.75,129.7,0.25098]
[1726689224708,7.7089,129.72,129.7,0.25098]
[1726689225083,39.2632,129.79,129.7,0.25098]
[1726689225084,7.7083,129.73,129.7,0.25098]
[1726689225310,7.7077,129.74,129.7,0.25098]
[1726689225808,7.7077,129.74,129.7,0.12549]
[1726689225809,7.7078,129.74,129.7,0.12549]
[1726689226012,7.7084,129.73,129.7,0.12549]
[1726689226391,7.7089,129.72,129.69,0.4384089]
[1726689226708,20.0,129.76,129.7,0.25098]
[1726689226919,7.7075,129.75,129.7,7.96098]
[1726689227114,7.7077,129.74,129.71,0.12549]
[1726689227421,7.7084,129.73,129.69,0.3129189]
[1726689227594,7.7076,129.75,129.7,0.25098]
[1726689227798,7.7076,129.75,129.7,7.96098]
[1726689228103,7.7065,129.76,129.71,7.83479]
[1726689228299,8.02144493,129.79,129.7,27.23538]
[1726689228501,7.7072,129.75,129.72,0.25098]
[1726689228705,7.7066,129.76,129.72,0.25098]
[1726689228909,20.0,129.78,129.7,19.2744]
[1726689229097,20.0,129.78,129.73,0.37647]
[1726689229502,7.7061,129.77,129.73,0.37647]
[1726689229811,39.2639,129.78,129.71,8.08577]
[1726689229986,20.0,129.81,129.71,8.08577]
[1726689230194,19.2595,129.81,129.71,401.74927]
[1726689230400,7.706,129.77,129.74,0.25098]
[1726689230817,7.7054,129.78,129.74,7.95858]
[1726689231018,7.7047,129.79,129.74,7.95858]
[1726689231343,19.44221945,129.84,129.74,0.25098]
[1726689231493,7.706,129.77,129.74,0.25098]
[1726689231703,7.7045,129.8,129.76,0.25098]